bitfinex-derivatives/quotes_BTCF0:USTF0_20260111
["timestamp","ask_amount","ask_price","bid_price","bid_amount"]
[1768120706287,0.09368,90855.0,90846.0,0.011021]
[1768120707293,0.09368,90855.0,90848.0,0.011021]
[1768120709384,0.09368,90855.0,90840.0,0.13251473]
[1768120710490,0.1047,90855.0,90840.0,0.13251473]
[1768120710792,0.1047,90855.0,90839.0,0.0936005]
[1768120710793,0.09368,90855.0,90839.0,0.0936005]
[1768120710990,0.09368,90855.0,90840.0,0.15149373]
[1768120711591,0.011021,90853.0,90840.0,0.15149373]
[1768120711788,0.011021,90851.0,90840.0,0.15149373]
[1768120711988,0.09368,90855.0,90839.0,0.0936005]
[1768120712190,0.011021,90851.0,90840.0,0.15149373]
[1768120712692,0.011021,90848.0,90839.0,0.0936005]
[1768120712890,0.09368,90855.0,90839.0,0.0936005]
[1768120713087,0.011021,90848.0,90839.0,0.0936005]
[1768120713281,0.09368,90855.0,90839.0,0.0936005]
[1768120714400,0.011021,90848.0,90839.0,0.0936005]
[1768120715299,0.011021,90847.0,90839.0,0.0936005]
[1768120716199,0.011021,90850.0,90839.0,0.0936005]
[1768120716500,0.09368,90855.0,90839.0,0.0936005]
[1768120716796,0.011021,90848.0,90839.0,0.0936005]
[1768120717299,0.011021,90846.0,90839.0,0.0936005]
[1768120718400,0.011022,90845.0,90839.0,0.0936005]
[1768120719195,0.10951988,90858.0,90827.0,0.09368]
[1768120719196,0.01102,90857.0,90840.0,0.19287574]
[1768120719389,0.12019385,90856.0,90842.0,0.09764971]
[1768120719692,0.011021,90849.0,90841.0,0.09522603]
[1768120719891,0.09368,90856.0,90841.0,0.09522603]
[1768120720195,0.02651384,90855.0,90841.0,0.09522603]
[1768120720398,0.011021,90847.0,90841.0,0.09522603]
[1768120720594,0.09368,90856.0,90841.0,0.09522603]
[1768120720897,0.02634155,90855.0,90841.0,0.09522603]
[1768120721098,0.09368,90856.0,90841.0,0.09522603]
[1768120721395,0.011021,90846.0,90841.0,0.09522603]
[1768120721592,0.01102,90855.0,90841.0,0.09522603]
[1768120722193,0.011022,90846.0,90841.0,0.09522603]
[1768120722388,0.011021,90854.0,90841.0,0.09522603]
[1768120722594,0.01102,90855.0,90834.0,0.40833865]
[1768120722595,0.011021,90852.0,90836.0,0.09522603]
[1768120723299,0.011022,90845.0,90836.0,0.09522603]
[1768120723799,0.011022,90844.0,90836.0,0.09522603]
[1768120726704,0.011022,90844.0,90836.0,0.06422603]
[1768120729009,0.011022,90844.0,90834.0,0.50598836]
[1768120730909,0.011022,90843.0,90834.0,0.50598836]
[1768120732109,0.011022,90843.0,90835.0,0.09764971]
[1768120733707,0.011023,90836.0,90823.0,0.09764971]
[1768120733913,0.011023,90833.0,90823.0,0.09764971]
[1768120734114,0.011023,90832.0,90823.0,0.09764971]
[1768120734414,0.011023,90834.0,90823.0,0.09764971]
[1768120735616,0.011023,90833.0,90823.0,0.09764971]
[1768120735914,0.011023,90832.0,90821.0,0.09700923]
[1768120737718,0.011023,90835.0,90821.0,0.09700923]
[1768120738216,0.011023,90834.0,90821.0,0.09700923]
[1768120739315,0.011023,90831.0,90821.0,0.09700923]
[1768120740416,0.09376541,90843.0,90808.0,0.9508]
[1768120740417,0.011024,90829.0,90811.0,0.104706]
[1768120740814,0.011024,90827.0,90811.0,0.104706]
[1768120741611,0.011024,90825.0,90811.0,0.104706]
[1768120741816,0.011024,90825.0,90811.0,0.09368]
[1768120742413,0.011024,90823.0,90811.0,0.09368]
[1768120742910,0.09026491,90828.0,90811.0,0.09368]
[1768120743118,0.09026491,90826.0,90811.0,0.09368]
[1768120743812,0.0992235,90821.0,90801.0,0.09368]
[1768120744016,0.011026,90810.0,90801.0,0.09368]
[1768120744215,0.19507244,90817.0,90801.0,0.09368]
[1768120744416,0.0992235,90816.0,90801.0,0.09368]
[1768120744820,0.011026,90809.0,90801.0,0.09368]
[1768120745213,0.19507244,90815.0,90798.0,0.00242297]
[1768120745506,0.0992235,90814.0,90798.0,0.00242297]
[1768120745708,0.011026,90808.0,90798.0,0.00242297]
[1768120746115,0.011026,90805.0,90788.0,0.18452969]
[1768120746315,0.011026,90805.0,90788.0,0.19555769]
[1768120747121,0.011027,90802.0,90788.0,0.18452969]
[1768120747919,0.1102495,90805.0,90788.0,0.09368]
[1768120748114,0.0992235,90802.0,90788.0,0.09368]
[1768120749124,0.0992235,90802.0,90788.0,0.104708]
[1768120749314,0.09584894,90803.0,90790.0,0.011028]
[1768120749519,0.0992235,90805.0,90790.0,0.011028]
[1768120749716,0.011026,90806.0,90790.0,0.011028]
[1768120749920,0.0992235,90808.0,90792.0,0.011028]
[1768120750518,0.19507244,90820.0,90799.0,0.09084969]
[1768120750734,0.011025,90817.0,90804.0,0.09084969]
[1768120751023,0.09372,90816.0,90804.0,0.09084969]
[1768120751420,0.09372,90816.0,90805.0,0.011026]
[1768120751620,0.09372,90816.0,90802.0,0.011027]
[1768120752423,0.1102485,90818.0,90802.0,0.011027]
[1768120752618,0.09372,90817.0,90802.0,0.011027]
[1768120753229,0.1102485,90818.0,90802.0,0.011027]
[1768120753429,0.09372,90817.0,90802.0,0.011027]
[1768120754222,0.0992235,90816.0,90802.0,0.011027]
[1768120754629,0.19507244,90816.0,90799.0,0.011027]
[1768120754829,0.0992235,90815.0,90799.0,0.011027]
[1768120756127,0.19507244,90815.0,90799.0,0.011027]
[1768120756333,0.0992235,90814.0,90799.0,0.011027]
[1768120756533,0.09584894,90813.0,90799.0,0.011027]
[1768120756735,0.0992235,90808.0,90788.0,0.19220783]
[1768120757034,0.0992235,90807.0,90788.0,0.19220783]
[1768120757433,0.0992235,90807.0,90790.0,0.011028]
[1768120758339,0.1102495,90807.0,90790.0,0.011028]
[1768120759538,0.1102495,90807.0,90792.0,0.011028]
[1768120760034,0.0992235,90807.0,90789.0,0.09084969]
[1768120760234,0.011026,90809.0,90790.0,0.18937752]
[1768120760535,0.011026,90809.0,90791.0,0.09084969]
[1768120760733,0.011026,90809.0,90795.0,0.011028]
[1768120761732,0.011026,90807.0,90793.0,0.011028]
[1768120761933,0.1102495,90807.0,90793.0,0.011028]
[1768120762527,0.20609844,90807.0,90793.0,0.011028]
[1768120762841,0.011026,90805.0,90791.0,0.011028]
[1768120763231,0.0992235,90806.0,90791.0,0.011028]
[1768120763436,0.19507244,90806.0,90791.0,0.011028]
[1768120763639,0.19507244,90806.0,90788.0,0.09368]
[1768120763640,0.011027,90804.0,90788.0,0.09368]
[1768120764235,0.0992235,90805.0,90789.0,0.011028]
[1768120765428,0.09584894,90804.0,90791.0,0.011028]
[1768120765750,0.09584894,90801.0,90788.0,0.011028]
[1768120766043,0.0992235,90800.0,90788.0,0.011028]
[1768120766244,0.19507244,90800.0,90788.0,0.011028]
[1768120766541,0.0992235,90799.0,90788.0,0.011028]
[1768120766946,0.0992235,90799.0,90785.0,0.00550755]
[1768120766947,0.0992235,90799.0,90789.0,0.011028]
[1768120767834,0.0992235,90799.0,90790.0,0.011028]
[1768120769135,0.09584894,90798.0,90785.0,0.00550755]
[1768120769437,0.0992235,90797.0,90785.0,0.00550755]
[1768120770044,0.0992235,90797.0,90788.0,0.011028]
[1768120770438,0.0992235,90797.0,90788.0,0.01077644]
[1768120772144,0.0992235,90797.0,90785.0,0.01653655]
[1768120772344,0.0992235,90797.0,90785.0,0.00550755]
[1768120772546,0.011028,90793.0,90785.0,0.00550755]
[1768120772844,0.1102515,90793.0,90780.0,0.104749]
[1768120773044,0.0992235,90793.0,90784.0,0.011029]
[1768120773739,0.0992235,90793.0,90782.0,0.011029]
[1768120774246,0.0914856,90796.0,90785.0,0.011029]
[1768120774638,0.18606235,90796.0,90785.0,0.011029]
[1768120774942,0.0914856,90795.0,90785.0,0.011029]
[1768120775347,0.0914856,90795.0,90787.0,0.011029]
[1768120775749,0.0914856,90795.0,90788.0,0.011028]
[1768120776451,0.0914856,90795.0,90786.0,0.011029]
[1768120776747,0.18606235,90794.0,90780.0,0.24540106]
[1768120777650,0.0914856,90793.0,90780.0,0.24540106]
[1768120778051,0.0914856,90793.0,90787.0,0.011029]
[1768120778250,0.18606235,90793.0,90787.0,0.011029]
[1768120778446,0.0914856,90791.0,90780.0,0.24540106]
[1768120778654,0.18606235,90791.0,90780.0,0.09372]
[1768120778846,0.18606235,90791.0,90780.0,0.24540106]
[1768120779043,0.18606235,90791.0,90785.0,0.011029]
[1768120780058,0.18606235,90791.0,90783.0,0.011029]
[1768120780358,0.18606235,90791.0,90773.0,0.09372]
[1768120780359,0.0914856,90788.0,90773.0,0.09372]
[1768120780550,0.09372,90805.0,90768.0,0.09898584]
[1768120780551,0.0914856,90784.0,90778.0,0.01103]
[1768120780745,0.09457675,90785.0,90769.0,0.011031]
[1768120780746,0.0914856,90782.0,90769.0,0.011031]
[1768120780950,0.0914856,90781.0,90770.0,0.15168106]
[1768120781251,0.0914856,90781.0,90777.0,0.01103]
[1768120781459,0.09457735,90781.0,90777.0,0.01103]
[1768120782556,0.09457735,90781.0,90775.0,0.01103]
[1768120782763,0.09457735,90781.0,90772.0,0.01103]
[1768120784654,0.0914856,90778.0,90760.0,0.15168106]
[1768120784858,0.09457675,90777.0,90760.0,0.15168106]
[1768120785160,3.5e-07,90776.0,90760.0,0.15168106]
[1768120785861,9.425e-05,90775.0,90760.0,0.15168106]
[1768120786159,9.425e-05,90775.0,90771.0,0.011031]
[1768120786863,9.425e-05,90775.0,90766.0,0.011031]
[1768120787360,0.09157985,90775.0,90766.0,0.011031]
[1768120788158,0.09157985,90775.0,90768.0,0.011031]
[1768120789763,0.09157985,90775.0,90760.0,0.011032]
[1768120789764,9.425e-05,90775.0,90760.0,0.011032]
[1768120789966,9.425e-05,90775.0,90760.0,0.16271306]
[1768120790557,0.0914856,90782.0,90774.0,0.01103]
[1768120790762,0.09372,90781.0,90769.0,0.011031]
[1768120791065,0.09372,90780.0,90771.0,0.011031]
[1768120792260,0.09372,90780.0,90767.0,0.011031]
[1768120793166,0.1852056,90780.0,90767.0,0.011031]
[1768120794264,0.1852056,90780.0,90762.0,0.09543052]
[1768120794265,0.09287583,90779.0,90764.0,0.011031]
[1768120794770,0.09287583,90778.0,90766.0,0.011031]
[1768120795772,0.09376,90777.0,90766.0,0.011031]
[1768120796266,0.09376,90777.0,90768.0,0.011031]
[1768120796463,0.09287583,90769.0,90751.0,0.104753]
[1768120796670,0.09287583,90768.0,90751.0,0.104753]
[1768120797062,0.0915326,90769.0,90759.0,0.011032]
[1768120797261,0.09287583,90772.0,90761.0,0.011032]
[1768120798582,0.09287583,90772.0,90762.0,0.011032]
[1768120800268,0.09287583,90772.0,90760.0,0.011032]
[1768120800773,0.09287583,90771.0,90760.0,0.011032]
[1768120800963,0.09287583,90769.0,90751.0,0.18597748]
[1768120801163,0.09287583,90767.0,90751.0,0.09372]
[1768120801362,0.09287583,90766.0,90751.0,0.09372]
[1768120801557,0.09287583,90766.0,90758.0,0.011032]
[1768120803571,0.09287583,90766.0,90751.0,0.09372]
[1768120803572,0.10390683,90766.0,90754.0,0.011033]
[1768120804573,0.09287583,90766.0,90754.0,0.011033]
[1768120804768,0.09287583,90766.0,90756.0,0.011032]
[1768120805767,0.16271206,90770.0,90750.0,0.15168106]
[1768120805768,0.09717304,90770.0,90750.0,0.15168106]
[1768120806075,0.09717304,90769.0,90750.0,0.15168106]
[1768120807274,0.09717304,90769.0,90758.0,0.011032]
[1768120807973,0.09717304,90769.0,90760.0,0.011032]
[1768120808864,0.09558305,90770.0,90762.0,0.011032]
[1768120809073,0.09717304,90772.0,90760.0,0.011032]
[1768120809464,0.0263696,90771.0,90754.0,0.011033]
[1768120809674,0.09717304,90772.0,90754.0,0.011033]
[1768120809877,0.02636965,90771.0,90754.0,0.011033]
[1768120810063,0.09717304,90772.0,90761.0,0.011032]
[1768120810270,0.02636965,90771.0,90761.0,0.011032]
[1768120810573,0.09717304,90772.0,90761.0,0.011032]
[1768120810871,0.0263748,90771.0,90761.0,0.011032]
[1768120811071,0.09717304,90772.0,90761.0,0.011032]
[1768120811275,0.02637479,90771.0,90761.0,0.011032]
[1768120811477,0.09717304,90772.0,90761.0,0.011032]
[1768120811973,0.09717304,90750.0,90720.0,0.011037]
[1768120812167,0.09558305,90742.0,90725.0,0.00260192]
[1768120812369,0.19275609,90740.0,90725.0,0.00260192]
[1768120812675,0.09558305,90737.0,90725.0,0.00260192]
[1768120812871,0.09717304,90736.0,90731.0,0.011035]
[1768120813075,9.078e-05,90735.0,90721.0,0.011037]
[1768120813277,9.073e-05,90735.0,90717.0,0.011037]
[1768120813469,9.073e-05,90735.0,90718.0,0.011037]
[1768120813670,9.073e-05,90735.0,90729.0,0.011036]
[1768120813874,9.073e-05,90735.0,90719.0,0.011037]
[1768120814679,9.073e-05,90735.0,90731.0,0.011035]
[1768120814873,0.011031,90769.0,90721.0,0.011037]
[1768120815068,0.09558305,90748.0,90723.0,0.10149865]
[1768120815270,0.0824182,90745.0,90723.0,0.09046265]
[1768120815474,0.0824182,90743.0,90723.0,0.09046265]
[1768120815779,0.0824182,90743.0,90732.0,0.011035]
[1768120816270,0.0824182,90743.0,90723.0,0.09046265]
[1768120816471,0.0824269,90741.0,90723.0,0.09046265]
[1768120816881,0.1761869,90740.0,90723.0,0.09046265]
[1768120817383,0.1761869,90740.0,90731.0,0.011035]
[1768120817685,0.0824269,90739.0,90731.0,0.011035]
[1768120818380,0.0824269,90739.0,90723.0,0.09046265]
[1768120820183,0.0824269,90739.0,90733.0,0.011035]
[1768120820371,0.0824269,90739.0,90723.0,0.09046265]
[1768120822176,0.0824269,90739.0,90732.0,0.011035]
[1768120822473,0.0824269,90739.0,90723.0,0.09046265]
[1768120823578,0.0824269,90739.0,90732.0,0.011035]
[1768120823781,0.0824269,90739.0,90723.0,0.09046265]
[1768120824684,0.24544106,90740.0,90733.0,0.011035]
[1768120824876,0.09376,90740.0,90733.0,0.011035]
[1768120825077,1.09884106,90743.0,90735.0,0.011035]
[1768120825382,0.0938,90739.0,90725.0,0.09046265]
[1768120827184,0.07479052,90738.0,90721.0,0.011037]
[1768120830081,0.07479052,90738.0,90722.0,0.011036]
[1768120830687,0.07479052,90738.0,90723.0,0.011036]
[1768120831887,0.07479052,90738.0,90732.0,0.011035]
[1768120832087,0.07479052,90738.0,90720.0,0.09046265]
[1768120832282,0.94724,90743.0,90739.0,0.011034]
[1768120832588,0.0938,90742.0,90736.0,0.011035]
[1768120832784,0.0938,90742.0,90730.0,0.09046265]
[1768120832982,0.0938,90742.0,90735.0,0.011035]
[1768120834482,0.15168106,90740.0,90725.0,0.09046265]
[1768120834990,0.25063583,90740.0,90725.0,0.09046265]
[1768120835391,0.25063583,90740.0,90732.0,0.011035]
[1768120835992,0.09895477,90740.0,90732.0,0.011035]
[1768120836385,0.09895477,90731.0,90722.0,0.011036]
[1768120836585,0.09895477,90731.0,90713.0,0.011038]
[1768120836586,0.09895477,90729.0,90713.0,0.011038]
[1768120837193,0.09895477,90729.0,90721.0,0.011037]
[1768120837580,0.09895477,90729.0,90713.0,0.011038]
[1768120838296,0.0906517,90728.0,90713.0,0.011038]
[1768120839193,0.0906517,90728.0,90722.0,0.011037]
[1768120839401,0.0906517,90728.0,90713.0,0.011038]
[1768120841201,0.0906517,90728.0,90721.0,0.011037]
[1768120841398,0.09329019,90726.0,90713.0,0.011038]
[1768120842393,1.9e-07,90726.0,90714.0,0.011037]
[1768120843396,0.0938,90731.0,90710.0,0.011038]
[1768120843602,0.0938,90731.0,90726.0,0.011036]
[1768120844094,0.00550998,90745.0,90727.0,0.09757785]
[1768120844294,0.00550998,90745.0,90736.0,0.011035]
[1768120844295,0.12036965,90744.0,90736.0,0.011035]
[1768120844496,0.02656965,90743.0,90728.0,0.09757785]
[1768120845994,0.02656965,90743.0,90734.0,0.011035]
[1768120847001,0.02656965,90743.0,90735.0,0.011035]
[1768120847501,0.02656965,90743.0,90737.0,0.011035]
[1768120848401,0.02656965,90743.0,90728.0,0.09757785]
[1768120848699,0.02656965,90743.0,90736.0,0.011035]
[1768120849501,0.02656965,90743.0,90738.0,0.011035]
[1768120850804,0.02656965,90743.0,90735.0,0.011035]
[1768120850999,0.02656965,90743.0,90728.0,0.08761285]
[1768120852006,0.02656965,90743.0,90736.0,0.011035]
[1768120852301,0.02656965,90743.0,90728.0,0.08761285]
[1768120853199,0.02656965,90743.0,90733.0,0.011035]
[1768120853406,0.02656965,90743.0,90728.0,0.08761285]
[1768120853906,0.02656965,90743.0,90735.0,0.011035]
[1768120854091,0.02656965,90743.0,90728.0,0.08761285]
[1768120854292,0.00016534,90745.0,90732.0,0.09167126]
[1768120854499,0.0938,90756.0,90741.0,0.011034]
[1768120854703,0.0086419,90755.0,90732.0,0.09167126]
[1768120855100,0.0086419,90755.0,90741.0,0.011034]
[1768120855302,0.0086419,90755.0,90733.0,0.011035]
[1768120855696,0.0086419,90755.0,90734.0,0.011035]
[1768120855991,0.0086419,90755.0,90738.0,0.011034]
[1768120856191,0.0086419,90755.0,90748.0,0.011033]
[1768120856506,0.0086419,90755.0,90739.0,0.011034]
[1768120856805,0.00877111,90767.0,90748.0,0.011033]
[1768120857007,1.04116,90766.0,90757.0,0.011032]
[1768120857201,1.04116,90766.0,90747.0,0.09167126]
[1768120857399,0.00877111,90767.0,90759.0,0.011032]
[1768120857604,0.94728,90771.0,90758.0,0.011032]
[1768120857902,0.0938,90770.0,90755.0,0.011032]
[1768120858106,0.009968,90769.0,90748.0,0.08170326]
[1768120859004,0.009968,90769.0,90757.0,0.011032]
[1768120859406,0.009968,90769.0,90748.0,0.08170326]
[1768120859606,0.009968,90769.0,90758.0,0.011032]
[1768120860314,0.009968,90769.0,90756.0,0.011032]
[1768120860612,0.009968,90769.0,90758.0,0.011032]
[1768120862211,0.009968,90769.0,90748.0,0.08170326]
[1768120862396,0.009968,90769.0,90758.0,0.011032]
[1768120864716,0.009968,90769.0,90748.0,0.08170326]
[1768120865014,0.009968,90769.0,90756.0,0.011032]
[1768120865213,0.009968,90769.0,90748.0,0.07273526]
[1768120865814,0.009968,90769.0,90757.0,0.011032]
[1768120866420,0.0262213,90768.0,90757.0,0.011032]
[1768120866613,0.0262213,90767.0,90756.0,0.011032]
[1768120866809,0.0262213,90766.0,90756.0,0.011032]
[1768120867117,0.0262213,90765.0,90748.0,0.07273526]
[1768120867314,0.0262213,90764.0,90753.0,0.011033]
[1768120867507,0.0262213,90763.0,90753.0,0.09024592]
[1768120867809,0.0262213,90762.0,90753.0,0.09024592]
[1768120868016,3e-07,90761.0,90753.0,0.09024592]
[1768120868204,0.0938,90770.0,90757.0,0.011032]
[1768120871928,0.0938,90770.0,90753.0,0.09719819]
[1768120872216,0.0938,90770.0,90749.0,0.104833]
[1768120872217,0.0938,90770.0,90756.0,0.08027692]
[1768120872523,0.0938,90777.0,90762.0,0.011032]
[1768120872825,0.0938,90777.0,90763.0,0.011031]
[1768120873121,0.0938,90777.0,90756.0,0.08027692]
[1768120873320,0.0938,90777.0,90762.0,0.011032]
[1768120873817,0.0938,90777.0,90756.0,0.08027692]
[1768120875222,0.0938,90777.0,90761.0,0.011032]
[1768120875417,0.0938,90777.0,90756.0,0.08027692]
[1768120876115,0.0938,90777.0,90761.0,0.011032]
[1768120876620,0.10483,90777.0,90761.0,0.011032]
[1768120877223,0.01103,90776.0,90761.0,0.011032]
[1768120877925,0.0938,90777.0,90763.0,0.011032]
[1768120878115,0.0938,90777.0,90761.0,0.09024592]
[1768120878314,0.0938,90777.0,90763.0,0.10127692]
[1768120879024,0.10483,90777.0,90763.0,0.09024592]
[1768120879926,0.02596898,90776.0,90763.0,0.09024592]
[1768120880124,0.02596898,90775.0,90763.0,0.07024592]
[1768120880323,0.02596898,90774.0,90763.0,0.07024592]
[1768120880529,0.10483,90777.0,90763.0,0.07024592]
[1768120880530,0.02596898,90773.0,90763.0,0.07024592]
[1768120880726,0.02596898,90772.0,90763.0,0.07024592]
[1768120881025,0.02596898,90771.0,90763.0,0.07024592]
[1768120881231,9.8e-07,90770.0,90763.0,0.09719819]
[1768120881423,0.0938,90777.0,90763.0,0.09719819]
[1768120881616,0.0938,90777.0,90767.0,0.011031]
[1768120882326,0.01103,90780.0,90764.0,0.011031]
[1768120884224,0.011029,90782.0,90766.0,0.011031]
[1768120884619,0.06154223,90783.0,90768.0,0.011031]
[1768120884819,0.011029,90783.0,90768.0,0.011031]
[1768120885216,0.011026,90808.0,90778.0,0.01103]
[1768120885217,0.104788,90793.0,90778.0,0.01103]
[1768120885425,0.09376,90793.0,90780.0,0.011029]
[1768120886124,0.09376,90793.0,90778.0,0.01103]
[1768120887028,0.09376,90793.0,90780.0,0.011029]
[1768120887229,0.09376,90793.0,90778.0,0.01103]
[1768120887427,0.09376,90793.0,90780.0,0.011029]
[1768120887824,0.09376,90793.0,90777.0,0.08230492]
[1768120889433,0.09376,90793.0,90779.0,0.01103]
[1768120893638,0.104788,90793.0,90777.0,0.07127492]
[1768120893838,0.104788,90793.0,90778.0,0.01103]
[1768120894333,0.09376,90793.0,90777.0,0.09037773]
[1768120894540,0.02537125,90792.0,90780.0,0.09037773]
[1768120894728,0.02537125,90791.0,90780.0,0.09037773]
[1768120894929,0.011028,90795.0,90780.0,0.09037773]
[1768120895128,0.02537112,90794.0,90780.0,0.09037773]
[1768120895328,0.00242297,90798.0,90780.0,0.09037773]
[1768120895329,0.03639912,90793.0,90780.0,0.09037773]
[1768120895538,0.02537112,90792.0,90780.0,0.09037773]
[1768120895739,0.02537112,90791.0,90780.0,0.09037773]
[1768120895940,0.011028,90793.0,90780.0,0.09037773]
[1768120896140,0.02536808,90792.0,90780.0,0.09037773]
[1768120896335,0.02536808,90791.0,90780.0,0.09037773]
[1768120896542,0.011028,90795.0,90780.0,0.09037773]
[1768120896736,0.02536596,90794.0,90780.0,0.09037773]
[1768120896930,0.02536596,90793.0,90780.0,0.09037773]
[1768120897127,0.02536596,90792.0,90780.0,0.09037773]
[1768120897331,0.02536596,90791.0,90780.0,0.09037773]
[1768120897626,0.011028,90795.0,90780.0,0.09037773]
[1768120897837,0.02536454,90794.0,90779.0,0.10117716]
[1768120898041,0.02536454,90793.0,90779.0,0.10117716]
[1768120898233,0.02536454,90792.0,90779.0,0.10117716]
[1768120898433,0.02536454,90791.0,90779.0,0.10117716]
[1768120898633,0.011028,90795.0,90779.0,0.10117716]
[1768120898837,0.02536377,90794.0,90779.0,0.10117716]
[1768120899034,0.02536377,90793.0,90779.0,0.10117716]
[1768120899235,0.02536377,90792.0,90779.0,0.09014816]
[1768120899433,0.02536377,90791.0,90779.0,0.09014816]
[1768120899633,0.011028,90794.0,90779.0,0.09014816]
[1768120899829,0.02536375,90793.0,90779.0,0.09014816]
[1768120900026,0.02536375,90792.0,90779.0,0.10117816]
[1768120900228,0.02536375,90791.0,90779.0,0.10117816]
[1768120900435,0.011028,90792.0,90779.0,0.09014816]
[1768120900636,0.02536453,90791.0,90779.0,0.09014816]
[1768120900844,0.011028,90792.0,90779.0,0.09014816]
[1768120901033,0.02536453,90791.0,90779.0,0.09014816]
[1768120901239,0.02536453,90790.0,90779.0,0.09014816]
[1768120901440,0.011028,90795.0,90779.0,0.04614816]
[1768120901641,0.02536611,90794.0,90779.0,0.04614816]
[1768120901942,0.02536611,90793.0,90779.0,0.04614816]
[1768120902141,0.02536611,90792.0,90779.0,0.04614816]
[1768120902440,0.02536611,90791.0,90779.0,0.10140673]
[1768120902642,0.02536611,90790.0,90779.0,0.09037773]
[1768120902836,0.02536611,90789.0,90779.0,0.09037773]
[1768120903042,0.02536611,90788.0,90779.0,0.09037773]
[1768120903235,0.02536611,90787.0,90779.0,0.09037773]
[1768120903435,0.02536611,90786.0,90779.0,0.09037773]
[1768120903642,0.02536611,90785.0,90779.0,0.10140673]
[1768120903942,0.02536611,90784.0,90780.0,0.09014816]
[1768120904136,0.011027,90797.0,90780.0,0.09014816]
[1768120905147,0.011027,90797.0,90781.0,0.011029]
[1768120905743,0.00242297,90798.0,90780.0,0.09014816]
[1768120905744,0.00242297,90798.0,90783.0,0.011029]
[1768120905942,0.00242297,90798.0,90782.0,0.18052589]
[1768120906147,0.011027,90797.0,90783.0,0.18052589]
[1768120906342,0.00242297,90798.0,90784.0,0.18052589]
[1768120906644,0.01344997,90798.0,90786.0,0.09014816]
[1768120906849,0.01344997,90798.0,90786.0,0.03054903]
[1768120908352,0.011029,90788.0,90772.0,0.01103]
[1768120908641,0.15171357,90780.0,90773.0,0.09376]
[1768120908845,0.15171357,90783.0,90766.0,0.09014816]
[1768120909053,0.15171357,90780.0,90771.0,0.01103]
[1768120909253,0.15171357,90780.0,90767.0,0.18390816]
[1768120909751,0.15171357,90780.0,90772.0,0.01103]
[1768120910651,0.15171357,90780.0,90774.0,0.01103]
[1768120910859,0.15171357,90784.0,90774.0,0.01103]
[1768120911049,0.15171357,90784.0,90769.0,0.09037773]
[1768120911349,0.15171357,90780.0,90772.0,0.01103]
[1768120911649,0.15171357,90780.0,90772.0,0.01078448]
[1768120912044,0.15171357,90782.0,90767.0,0.09014816]
[1768120912347,0.16274257,90782.0,90767.0,0.10117916]
[1768120912549,0.16274257,90782.0,90767.0,0.09014816]
[1768120912850,0.16274257,90782.0,90767.0,0.18052589]
[1768120913353,0.16274257,90782.0,90767.0,0.19155689]
[1768120917554,0.16274257,90782.0,90767.0,0.18052589]
[1768120918254,0.15171357,90782.0,90767.0,0.18052589]
[1768120918946,0.15171357,90782.0,90768.0,0.011031]
[1768120919146,0.02516636,90781.0,90768.0,0.011031]
[1768120919346,0.15171357,90782.0,90768.0,0.011031]
[1768120919547,0.0251666,90781.0,90768.0,0.011031]
[1768120919749,0.15171357,90782.0,90768.0,0.011031]
[1768120919948,0.0251666,90781.0,90768.0,0.011031]
[1768120920150,0.15171357,90782.0,90770.0,0.011031]
[1768120920449,0.02516683,90781.0,90770.0,0.011031]
[1768120920650,0.10144567,90787.0,90770.0,0.011031]
[1768120920858,0.02516683,90786.0,90772.0,0.01103]
[1768120921061,0.02516683,90785.0,90772.0,0.01103]
[1768120921250,0.02516683,90784.0,90768.0,0.09664168]
[1768120921447,0.09041667,90787.0,90769.0,0.09664168]
[1768120921448,0.02516683,90783.0,90769.0,0.09664168]
[1768120921755,0.02516683,90782.0,90769.0,0.09664168]
[1768120921955,0.02516683,90781.0,90774.0,0.01103]
[1768120922156,0.09041667,90787.0,90774.0,0.01103]
[1768120922458,0.02516733,90786.0,90774.0,0.01103]
[1768120922650,0.02516733,90785.0,90774.0,0.01103]
[1768120922850,0.02516733,90784.0,90774.0,0.01103]
[1768120923050,0.02516733,90783.0,90769.0,0.09664168]
[1768120923350,0.02516733,90782.0,90769.0,0.09664168]
[1768120923551,0.02516733,90781.0,90769.0,0.09664168]
[1768120923861,0.24547357,90790.0,90773.0,0.19638563]
[1768120924057,0.02516757,90789.0,90773.0,0.19638563]
[1768120924356,0.02516757,90788.0,90773.0,0.19638563]
[1768120924559,0.02516757,90787.0,90774.0,0.01103]
[1768120924856,0.02516757,90786.0,90774.0,0.01103]
[1768120925058,0.02516757,90785.0,90774.0,0.01103]
[1768120925257,0.02516757,90784.0,90774.0,0.01103]
[1768120925457,0.02516757,90783.0,90774.0,0.01103]
[1768120925652,0.02516757,90782.0,90773.0,0.07970439]
[1768120925853,0.02516757,90781.0,90773.0,0.07970439]
[1768120926054,0.02536688,90780.0,90769.0,0.09671124]
[1768120926357,0.2831896,90790.0,90769.0,0.09671124]
[1768120926358,0.13147603,90790.0,90769.0,0.09671124]
[1768120926552,0.02536691,90789.0,90774.0,0.01103]
[1768120926753,0.02536691,90788.0,90774.0,0.01103]
[1768120927053,0.02536691,90787.0,90774.0,0.01103]
[1768120927252,0.02536691,90786.0,90774.0,0.01103]
[1768120927453,0.02536691,90785.0,90774.0,0.01103]
[1768120927756,0.02536691,90784.0,90774.0,0.01103]
[1768120927955,0.02536691,90783.0,90774.0,0.01103]
[1768120928156,0.02536691,90782.0,90774.0,0.01103]
[1768120928356,0.02536691,90781.0,90774.0,0.01103]
[1768120928557,0.2831896,90790.0,90774.0,0.01103]
[1768120928758,0.02536727,90789.0,90774.0,0.01103]
[1768120929060,0.02536727,90788.0,90774.0,0.01103]
[1768120929258,0.02536727,90787.0,90774.0,0.01103]
[1768120929462,0.02536727,90786.0,90774.0,0.01103]
[1768120929759,0.02536727,90785.0,90774.0,0.01103]
[1768120929958,0.02536727,90784.0,90774.0,0.01103]
[1768120930261,0.02536727,90783.0,90774.0,0.01103]
[1768120930559,0.02536727,90782.0,90774.0,0.01103]
[1768120930760,0.02536727,90781.0,90774.0,0.01103]
[1768120931058,0.02536727,90780.0,90774.0,0.01103]
[1768120931360,0.2831896,90790.0,90774.0,0.01103]
[1768120931558,0.02536843,90789.0,90774.0,0.01103]
[1768120931759,0.02536843,90788.0,90774.0,0.01103]
[1768120931952,0.02536843,90787.0,90774.0,0.01103]
[1768120932152,0.02536843,90786.0,90774.0,0.01103]
[1768120932353,0.02536843,90785.0,90774.0,0.01103]